bitfinex-derivatives/quotes_BTCF0:USTF0_20241226
["timestamp","ask_amount","ask_price","bid_price","bid_amount"]
[1735171949731,0.040099,99837.0,99832.0,0.400901]
[1735171950329,0.040096,99844.0,99835.0,0.0401]
[1735171951136,0.040096,99844.0,99832.0,0.3608]
[1735171951331,0.040096,99844.0,99837.0,0.040099]
[1735171951722,0.040097,99842.0,99837.0,0.040099]
[1735171952533,0.040097,99841.0,99837.0,0.040099]
[1735171954239,0.040097,99841.0,99834.0,0.07888381]
[1735171954442,0.040097,99841.0,99838.0,0.040098]
[1735171955049,0.14897826,99855.0,99841.0,0.040097]
[1735171955340,0.17877391,99860.0,99859.0,0.04009]
[1735171955536,0.00150262,99871.0,99866.0,0.040087]
[1735171955736,0.00150262,99871.0,99866.0,0.400887]
[1735171956935,0.00150262,99871.0,99866.0,0.3608]
[1735171957140,0.00150262,99871.0,99870.0,0.040086]
[1735171959546,0.00450262,99871.0,99870.0,0.040086]
[1735171960145,0.00450262,99871.0,99870.0,0.041086]
[1735171962239,0.00450262,99871.0,99870.0,0.001]
[1735171962550,0.040092,99856.0,99850.0,0.040094]
[1735171962734,0.040092,99856.0,99845.0,0.040096]
[1735171962940,0.040092,99856.0,99844.0,0.3608]
[1735171962941,0.040092,99856.0,99844.0,0.36906196]
[1735171963343,0.040092,99856.0,99853.0,0.040092]
[1735171964248,0.042092,99856.0,99853.0,0.040092]
[1735171965036,0.040092,99856.0,99853.0,0.040092]
[1735171965640,0.3608,99855.0,99834.0,0.3608]
[1735171965843,0.3608,99855.0,99834.0,0.3693203]
[1735171966041,0.3608,99855.0,99842.0,0.040097]
[1735171966042,0.040096,99844.0,99842.0,0.040097]
[1735171967236,0.041096,99844.0,99842.0,0.040097]
[1735171967442,0.040098,99840.0,99835.0,0.040099]
[1735171967644,0.040099,99836.0,99834.0,0.0118803]
[1735171967844,0.040099,99836.0,99834.0,0.0105203]
[1735171968337,0.040099,99836.0,99834.0,0.0085203]
[1735171968548,0.040099,99836.0,99831.0,0.040101]
[1735171968742,0.1604,99839.0,99826.0,0.3608]
[1735171968941,0.1604,99839.0,99837.0,0.040099]
[1735171969138,0.001,99844.0,99842.0,0.040097]
[1735171969942,0.3608,99847.0,99842.0,0.040097]
[1735171970343,0.3608,99847.0,99834.0,0.4019]
[1735171970539,0.040099,99837.0,99827.0,0.00012612]
[1735171970744,0.0401,99834.0,99827.0,0.00012612]
[1735171971045,0.040102,99829.0,99827.0,0.00012612]
[1735171971244,0.3131,99828.0,99827.0,0.00012612]
[1735171971642,0.3131,99828.0,99827.0,0.00112612]
[1735171972444,0.041102,99829.0,99827.0,0.00112612]
[1735171972648,0.001,99829.0,99827.0,0.04122912]
[1735171973240,0.001,99829.0,99827.0,0.04022912]
[1735171973642,0.001,99829.0,99827.0,0.00012612]
[1735171973643,0.040102,99829.0,99827.0,0.00012612]
[1735171973943,0.1584,99828.0,99827.0,0.00012612]
[1735171974546,0.1574,99828.0,99827.0,1e-08]
[1735171975250,0.040112,99806.0,99803.0,0.23527228]
[1735171975453,0.3608,99807.0,99803.0,0.23527228]
[1735171975654,0.040109,99813.0,99806.0,0.040111]
[1735171976050,0.040109,99813.0,99808.0,0.04011]
[1735171976251,0.00010403,99812.0,99803.0,0.23527228]
[1735171976456,0.040111,99807.0,99801.0,0.040113]
[1735171976755,0.040111,99807.0,99806.0,0.001]
[1735171977055,0.3608,99808.0,99806.0,0.001]
[1735171977250,0.3608,99808.0,99805.0,0.040112]
[1735171977849,0.3608,99808.0,99807.0,0.040111]
[1735171978547,0.1556,99811.0,99808.0,0.04011]
[1735171979650,0.1556,99811.0,99805.0,0.002]
[1735171979953,0.1556,99811.0,99810.0,0.04011]
[1735171981151,0.00010403,99812.0,99810.0,0.04011]
[1735171982352,0.001,99811.0,99810.0,0.04011]
[1735171982843,0.00010403,99812.0,99810.0,0.04011]
[1735171983051,0.3608,99837.0,99829.0,0.040102]
[1735171983250,0.3608,99848.0,99829.0,0.040102]
[1735171983449,0.400895,99848.0,99829.0,0.040102]
[1735171983950,0.040095,99847.0,99829.0,0.040102]
[1735171984255,0.00250315,99830.0,99829.0,0.040102]
[1735171985058,0.00250315,99830.0,99829.0,0.0486197]
[1735171985955,0.00150315,99830.0,99829.0,0.0496197]
[1735171986858,0.00150315,99830.0,99829.0,0.0486197]
[1735171987062,0.040095,99846.0,99844.0,0.040096]
[1735171987857,0.040093,99852.0,99837.0,0.3608]
[1735171988077,0.040093,99852.0,99845.0,0.040096]
[1735171989156,0.002,99846.0,99845.0,0.040096]
[1735171989552,0.1601,99855.0,99845.0,0.040096]
[1735171989848,0.005,99852.0,99838.0,0.040098]
[1735171990054,0.3608,99845.0,99837.0,0.00136]
[1735171990358,0.3608,99845.0,99830.0,0.07888381]
[1735171990359,0.1565,99844.0,99830.0,0.07888381]
[1735171990555,0.196596,99844.0,99837.0,0.040099]
[1735171990864,0.040097,99842.0,99837.0,0.040099]
[1735171991857,0.400896,99845.0,99837.0,0.040099]
[1735171992063,0.040098,99839.0,99830.0,0.040102]
[1735171992566,0.3203,99843.0,99824.0,0.00150234]
[1735171992766,0.040102,99830.0,99825.0,0.040104]
[1735171993064,0.1521,99829.0,99825.0,0.040104]
[1735171993257,0.1521,99829.0,99824.0,0.00150234]
[1735171993457,0.040103,99827.0,99824.0,0.00150234]
[1735171993658,0.040103,99826.0,99824.0,0.00150234]
[1735171994362,0.1521,99829.0,99824.0,0.00150234]
[1735171994663,0.1521,99829.0,99824.0,0.04160634]
[1735171995163,0.3608,99831.0,99824.0,0.00150234]
[1735171995552,0.1591,99842.0,99830.0,0.040102]
[1735171995748,0.3608,99833.0,99830.0,0.040102]
[1735171995964,0.3608,99833.0,99824.0,0.00350234]
[1735171996166,0.1591,99842.0,99835.0,0.040099]
[1735171996459,0.040098,99839.0,99835.0,0.040099]
[1735171996656,0.1601,99842.0,99835.0,0.040099]
[1735171996856,0.040099,99838.0,99835.0,0.040099]
[1735171997763,0.040099,99837.0,99828.0,0.040102]
[1735171997955,0.040099,99837.0,99824.0,0.00150234]
[1735171998157,0.003,99833.0,99824.0,0.00150234]
[1735171998565,0.003,99833.0,99831.0,0.040101]
[1735171998967,0.1601,99842.0,99824.0,0.00150234]
[1735171999157,0.002,99838.0,99836.0,0.040099]
[1735171999558,0.1591,99842.0,99841.0,0.040097]
[1735171999956,0.1621,99842.0,99841.0,0.040097]
[1735172000966,0.003,99842.0,99841.0,0.040097]
[1735172001264,0.006,99842.0,99841.0,0.040097]
[1735172001465,0.003,99842.0,99841.0,0.040097]
[1735172001664,0.00846595,99854.0,99852.0,0.040092]
[1735172001967,0.157,99857.0,99854.0,0.040092]
[1735172002163,0.157,99857.0,99841.0,0.040097]
[1735172002367,0.157,99857.0,99847.0,0.3608]
[1735172002368,0.1656115,99857.0,99847.0,0.3608]
[1735172002764,0.040087,99866.0,99847.0,0.43968381]
[1735172002968,0.003,99854.0,99847.0,0.43968381]
[1735172003267,0.003,99854.0,99853.0,0.040092]
[1735172004471,0.005,99857.0,99853.0,0.040092]
[1735172005062,0.005,99857.0,99845.0,0.0084865]
[1735172005063,0.003,99854.0,99845.0,0.040095]
[1735172005258,0.005,99854.0,99845.0,0.040095]
[1735172005460,0.1537,99853.0,99845.0,0.040095]
[1735172006059,0.040094,99849.0,99845.0,0.040095]
[1735172008470,0.042094,99849.0,99845.0,0.040095]
[1735172009073,0.043094,99849.0,99845.0,0.040095]
[1735172009866,0.3608,99848.0,99846.0,0.040095]
[1735172010054,0.003,99849.0,99848.0,0.040094]
[1735172011270,0.002,99849.0,99848.0,0.040094]
[1735172011466,0.001,99849.0,99848.0,0.040094]
[1735172011765,0.001,99849.0,99848.0,0.400894]
[1735172012669,0.003,99849.0,99848.0,0.400894]
[1735172014563,0.040083,99878.0,99848.0,0.85117536]
[1735172014762,0.1584,99882.0,99872.0,0.040085]
[1735172014966,0.5144,99897.0,99874.0,0.040084]
[1735172015878,0.1536,99897.0,99874.0,0.400884]
[1735172016168,0.00150204,99895.0,99890.0,0.040077]
[1735172016563,0.00150204,99895.0,99893.0,0.040076]
[1735172017770,0.1584,99898.0,99893.0,0.040076]
[1735172017974,0.04008,99885.0,99880.0,0.3608]
[1735172020073,0.04008,99885.0,99881.0,0.040081]
[1735172020973,0.04108,99885.0,99881.0,0.040081]
[1735172021182,0.04108,99885.0,99873.0,0.040084]
[1735172021183,0.001,99885.0,99873.0,0.040084]
[1735172021475,0.040086,99868.0,99865.0,0.04158904]
[1735172021677,0.190187,99867.0,99865.0,0.00150204]
[1735172022268,0.1501,99867.0,99857.0,0.23584428]
[1735172022479,0.3608,99858.0,99857.0,0.23584428]
[1735172022879,0.5135,99858.0,99857.0,0.23584428]
[1735172023675,0.5135,99858.0,99852.0,0.040093]
[1735172024374,0.553591,99858.0,99852.0,0.040093]
[1735172024780,0.553591,99858.0,99857.0,0.001]
[1735172024980,0.553591,99858.0,99857.0,0.002]
[1735172025286,0.5135,99858.0,99857.0,0.002]
[1735172025475,0.5135,99858.0,99852.0,0.002]
[1735172025689,0.5135,99858.0,99855.0,0.040091]
[1735172025890,0.5135,99858.0,99857.0,0.001]
[1735172026296,0.5135,99858.0,99852.0,0.001]
[1735172026497,0.040092,99853.0,99852.0,0.001]
[1735172026893,0.040092,99853.0,99844.0,0.040096]
[1735172027094,0.3608,99848.0,99847.0,0.040095]
[1735172027302,0.3608,99858.0,99853.0,0.040092]
[1735172027602,0.040091,99857.0,99853.0,0.040092]
[1735172028490,0.040091,99857.0,99853.0,0.041092]
[1735172028789,0.040091,99857.0,99853.0,0.042092]
[1735172029389,0.040092,99855.0,99853.0,0.002]
[1735172030801,0.040092,99855.0,99853.0,0.003]
[1735172031397,0.040092,99855.0,99853.0,0.004]
[1735172040600,0.7216,99858.0,99837.0,0.00010696]
[1735172040601,0.040098,99838.0,99837.0,0.00010696]
[1735172040912,0.400898,99838.0,99824.0,0.23584428]
[1735172041209,0.400904,99825.0,99824.0,0.23584428]
[1735172041797,0.040107,99817.0,99816.0,0.29568573]
[1735172041999,0.04011,99809.0,99807.0,0.23630968]
[1735172042202,0.040113,99801.0,99799.0,1e-08]
[1735172042403,0.3608,99800.0,99799.0,1e-08]
[1735172043115,0.36087293,99800.0,99799.0,1e-08]
[1735172043510,0.36087293,99800.0,99799.0,0.001]
[1735172043511,0.40098693,99800.0,99799.0,0.001]
[1735172044215,0.040118,99790.0,99782.0,0.040121]
[1735172044512,0.040123,99777.0,99775.0,0.00931234]
[1735172044818,0.3608,99791.0,99758.0,9.232e-05]
[1735172044819,0.040124,99775.0,99765.0,0.040128]
[1735172045114,0.3608,99769.0,99765.0,0.040128]
[1735172045314,0.400927,99769.0,99758.0,9.232e-05]
[1735172045701,0.00011238,99768.0,99758.0,9.232e-05]
[1735172046511,0.00011238,99768.0,99758.0,0.07897613]
[1735172046912,0.00011238,99768.0,99758.0,9.232e-05]
[1735172047317,0.00011238,99768.0,99767.0,0.00250351]
[1735172048018,0.00011238,99768.0,99767.0,0.00350351]
[1735172051124,0.04023938,99768.0,99767.0,0.00350351]
[1735172055521,0.04023938,99768.0,99727.0,0.00530838]
[1735172055522,0.040134,99750.0,99740.0,0.3608]
[1735172055722,0.040135,99748.0,99740.0,0.3608]
[1735172055918,0.040136,99746.0,99740.0,0.3608]
[1735172056119,8.532e-05,99749.0,99740.0,0.3608]
[1735172056320,0.040143,99728.0,99721.0,0.040145]
[1735172056516,8.339e-05,99727.0,99721.0,0.040145]
[1735172058225,8.339e-05,99727.0,99725.0,0.3658]
[1735172058527,8.339e-05,99727.0,99725.0,0.3688]
[1735172058528,0.04022639,99727.0,99725.0,0.3688]
[1735172060710,8.339e-05,99727.0,99725.0,0.408944]
[1735172062026,0.04022639,99727.0,99725.0,0.408944]
[1735172062223,0.04022639,99727.0,99725.0,0.008]
[1735172063220,8.339e-05,99727.0,99725.0,0.008]
[1735172063827,8.339e-05,99727.0,99725.0,0.007]
[1735172064122,8.339e-05,99727.0,99725.0,0.004]
[1735172064331,8.339e-05,99727.0,99725.0,0.006]
[1735172065019,8.339e-05,99727.0,99726.0,0.040143]
[1735172065215,0.3015,99750.0,99726.0,0.040143]
[1735172065216,0.3608,99767.0,99726.0,0.55113413]
[1735172065428,0.040129,99762.0,99747.0,0.040135]
[1735172065624,0.040129,99762.0,99755.0,0.040132]
[1735172066024,0.11990274,99771.0,99755.0,0.040132]
[1735172066221,4.566e-05,99756.0,99755.0,0.040132]
[1735172068032,0.00204566,99756.0,99755.0,0.040132]
[1735172068632,0.00104566,99756.0,99755.0,0.040132]
[1735172069220,0.00104566,99756.0,99732.0,0.3608]
[1735172069221,0.00104566,99756.0,99735.0,0.00914893]
[1735172069424,0.00104566,99756.0,99740.0,0.040138]
[1735172069620,0.00104566,99756.0,99733.0,0.04014]
[1735172069621,0.040138,99741.0,99733.0,0.04014]
[1735172069823,0.040138,99739.0,99733.0,0.04014]
[1735172071521,0.040139,99738.0,99733.0,0.04014]
[1735172071730,4.566e-05,99740.0,99733.0,0.04214]
[1735172071929,0.04014,99735.0,99733.0,0.002]
[1735172073029,0.04014,99735.0,99733.0,0.001]
[1735172073234,0.04014,99735.0,99733.0,0.002]
[1735172074139,4.566e-05,99740.0,99733.0,0.002]
[1735172074348,4.566e-05,99740.0,99738.0,0.040139]
[1735172074637,4.566e-05,99740.0,99739.0,0.1515]
[1735172075233,4.566e-05,99740.0,99739.0,0.3133]
[1735172075631,0.11990274,99747.0,99739.0,0.3133]
[1735172075939,0.14995161,99755.0,99739.0,0.3133]
[1735172075940,0.08986564,99755.0,99754.0,0.040132]
[1735172076936,0.08986564,99755.0,99754.0,0.400932]
[1735172077137,0.0015043,99757.0,99756.0,0.040131]
[1735172079637,0.0025043,99757.0,99756.0,0.040131]
[1735172088343,0.0025043,99757.0,99739.0,0.17767325]
[1735172088640,0.040135,99748.0,99740.0,0.17631325]
[1735172088835,0.1596,99747.0,99740.0,0.17631325]
[1735172089045,0.1596,99747.0,99743.0,0.040136]
[1735172089243,0.1596,99747.0,99740.0,0.17631325]
[1735172089439,0.040137,99741.0,99740.0,0.17631325]
[1735172089646,0.040137,99741.0,99739.0,0.041138]
[1735172090932,0.042137,99741.0,99739.0,0.041138]
[1735172091442,0.002,99741.0,99739.0,0.040138]
[1735172092242,0.003,99741.0,99740.0,0.17631325]
[1735172093033,0.002,99741.0,99740.0,0.17631325]
[1735172093438,0.002,99741.0,99739.0,0.040138]
[1735172093637,0.003,99741.0,99739.0,0.040138]
[1735172094241,0.002,99741.0,99739.0,0.040138]
[1735172094637,0.040139,99736.0,99735.0,0.40094]
[1735172095251,0.040143,99728.0,99727.0,0.3608]
[1735172096740,0.040143,99728.0,99727.0,0.3638]
[1735172097645,0.040143,99728.0,99727.0,0.3658]
[1735172097842,0.08986564,99732.0,99730.0,0.040142]
[1735172098835,0.08986564,99732.0,99727.0,0.3658]
[1735172099047,0.24536564,99735.0,99730.0,0.001]
[1735172099244,0.040141,99731.0,99730.0,0.003]
[1735172100547,0.040141,99731.0,99730.0,0.002]
[1735172100747,0.040141,99731.0,99727.0,0.3628]
[1735172100943,0.24536564,99735.0,99733.0,0.04014]
[1735172102138,0.28550564,99735.0,99733.0,0.04014]
[1735172102543,0.19564,99735.0,99733.0,0.04014]
[1735172102742,0.19564,99735.0,99730.0,0.001]
[1735172102743,0.040141,99732.0,99730.0,0.001]
[1735172103343,0.1555,99735.0,99722.0,0.17808865]
[1735172103545,0.1555,99735.0,99733.0,0.041141]
[1735172104148,0.1555,99735.0,99733.0,0.040141]
[1735172104360,0.1555,99735.0,99730.0,0.003]
[1735172104655,0.04009043,99731.0,99730.0,0.003]
[1735172104957,0.04009043,99731.0,99730.0,0.002]
[1735172105544,0.040143,99729.0,99722.0,0.040145]
[1735172105745,0.3608,99729.0,99727.0,0.040143]
[1735172105951,6.4e-07,99732.0,99731.0,0.040141]
[1735172106152,0.3015,99783.0,99731.0,0.040141]
[1735172106153,0.0095751,99768.0,99767.0,0.040127]
[1735172106351,0.3608,99778.0,99767.0,0.040127]
[1735172106655,0.22906436,99790.0,99767.0,0.400927]
[1735172106850,0.22906436,99790.0,99775.0,0.400924]
[1735172107042,0.10362651,99776.0,99775.0,0.400924]
[1735172107248,0.10362651,99776.0,99775.0,0.55141786]
[1735172107450,0.3608,99805.0,99795.0,0.040116]
[1735172107451,0.17064503,99796.0,99795.0,0.040116]
[1735172108856,0.3608,99805.0,99791.0,0.3608]
[1735172109154,0.3608,99805.0,99801.0,0.040113]
[1735172109348,0.3608,99805.0,99791.0,0.3608]
[1735172109349,0.3608,99805.0,99793.0,0.040116]
[1735172109554,0.002,99796.0,99791.0,0.3608]
[1735172109757,0.002,99796.0,99794.0,0.040116]
[1735172109947,0.003,99796.0,99794.0,0.040116]
[1735172110253,0.001,99796.0,99794.0,0.040116]
[1735172112857,0.003,99796.0,99794.0,0.040116]
[1735172113353,0.040117,99793.0,99786.0,0.17731609]
[1735172114342,0.3618,99796.0,99786.0,0.17731609]
[1735172114542,0.040118,99789.0,99786.0,0.17731609]
[1735172115058,0.040118,99789.0,99783.0,0.3608]
[1735172115854,0.040119,99787.0,99783.0,0.3608]
[1735172116055,0.040121,99782.0,99781.0,0.17731609]
[1735172116555,0.040122,99780.0,99776.0,0.17731609]
[1735172116762,0.31334767,99777.0,99776.0,0.17731609]
[1735172116949,0.040122,99780.0,99776.0,0.17731609]
[1735172117147,0.040123,99778.0,99776.0,0.17731609]
[1735172117352,0.3608,99777.0,99776.0,0.17731609]
[1735172117653,0.3608,99777.0,99762.0,0.29584965]
[1735172117853,0.04013,99760.0,99759.0,0.17703293]
[1735172119459,0.04013,99760.0,99748.0,0.040134]
[1735172120060,0.04013,99760.0,99750.0,0.43968381]
[1735172120364,0.04113,99760.0,99750.0,0.47981781]
[1735172120563,0.001,99760.0,99750.0,0.400934]
[1735172120765,0.040131,99757.0,99750.0,0.400934]
[1735172120960,0.3608,99763.0,99750.0,0.3608]
[1735172121156,0.040134,99750.0,99742.0,0.040137]
[1735172121463,0.3608,99753.0,99742.0,0.040137]
[1735172121464,0.040134,99749.0,99742.0,0.040137]
[1735172122064,0.040134,99749.0,99743.0,0.040136]
[1735172122451,0.040134,99749.0,99735.0,0.19284]
[1735172122757,0.040134,99749.0,99729.0,0.040142]
[1735172123059,0.040134,99749.0,99726.0,0.3608]
[1735172123258,0.040142,99730.0,99726.0,0.3608]
[1735172124956,0.040142,99730.0,99726.0,0.3628]
[1735172125367,0.040142,99730.0,99726.0,0.3668]
[1735172126164,0.3608,99743.0,99726.0,0.3668]
[1735172126467,0.040141,99732.0,99726.0,0.3668]
[1735172126762,0.040143,99727.0,99726.0,0.006]
[1735172128757,0.3608,99735.0,99726.0,0.006]
[1735172128758,0.04014,99735.0,99726.0,0.006]
[1735172128959,0.3608,99735.0,99726.0,0.006]
[1735172129166,0.040142,99730.0,99726.0,0.006]
[1735172129968,0.00959189,99735.0,99726.0,0.006]
[1735172130163,0.3608,99744.0,99726.0,0.002]
[1735172130567,0.040139,99737.0,99727.0,0.040143]
[1735172130761,0.37001726,99744.0,99728.0,0.040143]
[1735172130963,0.04014,99736.0,99728.0,0.040143]
[1735172131269,0.37001726,99744.0,99728.0,0.040143]
[1735172131469,0.04014,99735.0,99728.0,0.040143]
[1735172131866,0.07888381,99750.0,99726.0,0.003]
[1735172131867,0.3608,99754.0,99753.0,0.040133]
[1735172132070,0.00931916,99768.0,99763.0,0.040128]
[1735172132265,0.07888381,99790.0,99766.0,0.3608]
[1735172132464,0.3608,99806.0,99766.0,0.3608]
[1735172132465,0.040121,99782.0,99767.0,0.040127]
[1735172133476,0.00934086,99789.0,99768.0,0.3608]
[1735172133663,0.040118,99790.0,99787.0,0.040119]
[1735172134063,0.040118,99790.0,99785.0,0.3608]
[1735172134581,0.002,99789.0,99785.0,0.3608]
[1735172135263,0.002,99789.0,99784.0,0.04012]
[1735172135466,0.040124,99775.0,99768.0,0.3608]
[1735172135775,0.040121,99783.0,99771.0,0.040125]
[1735172135971,0.040121,99783.0,99768.0,0.3608]
[1735172136170,0.001,99789.0,99768.0,0.3608]
[1735172136369,0.001,99789.0,99785.0,0.040119]
[1735172136971,0.04012,99786.0,99776.0,0.3608]
[1735172137169,0.001,99783.0,99776.0,0.3608]
[1735172137477,0.001,99783.0,99768.0,0.3608]
[1735172137675,0.3608,99772.0,99756.0,0.3608]
[1735172137872,0.04013,99760.0,99756.0,0.3608]
[1735172138071,0.040127,99767.0,99758.0,0.04013]
[1735172138678,0.040127,99767.0,99760.0,0.04013]
[1735172139681,0.040124,99775.0,99770.0,0.040126]
[1735172140877,0.040125,99772.0,99765.0,0.3608]
[1735172141583,0.040125,99772.0,99768.0,0.040126]
[1735172142880,0.042125,99772.0,99768.0,0.040126]
[1735172143281,0.042125,99772.0,99765.0,0.3608]
[1735172143484,0.043125,99772.0,99765.0,0.3608]
[1735172144286,0.041125,99772.0,99765.0,0.3608]
[1735172144477,0.042125,99772.0,99765.0,0.3608]
[1735172145276,0.002,99772.0,99765.0,0.3608]
[1735172145585,0.040126,99771.0,99765.0,0.3608]
[1735172147186,0.040127,99768.0,99765.0,0.3608]
[1735172148486,0.002,99768.0,99766.0,0.040127]
[1735172149492,0.003,99768.0,99766.0,0.040127]
[1735172149782,0.001,99768.0,99766.0,0.040127]
[1735172150079,0.001,99768.0,99766.0,0.042127]
[1735172150276,0.040126,99770.0,99766.0,0.042127]
[1735172150476,0.040126,99769.0,99766.0,0.043127]
[1735172150987,0.040126,99769.0,99766.0,0.041127]
[1735172151286,0.040126,99769.0,99766.0,0.042127]
[1735172152587,0.041126,99769.0,99766.0,0.041127]
[1735172153086,0.040126,99769.0,99766.0,0.040127]
[1735172153388,0.041126,99769.0,99766.0,0.040127]
[1735172155388,0.041126,99769.0,99767.0,0.040127]
[1735172155584,0.001,99769.0,99767.0,0.040127]
[1735172155980,0.37063665,99777.0,99765.0,0.3608]
[1735172156284,0.040123,99777.0,99771.0,0.040125]
[1735172156488,0.040123,99777.0,99772.0,0.040125]
[1735172156784,0.040124,99776.0,99772.0,0.040125]
[1735172157489,0.002,99777.0,99776.0,0.040123]
[1735172159085,0.040123,99778.0,99776.0,0.040123]
[1735172159786,0.002,99777.0,99776.0,0.040123]
[1735172160280,0.042123,99778.0,99776.0,0.040123]
[1735172160781,0.003,99778.0,99776.0,0.040123]
[1735172160980,0.003,99778.0,99770.0,0.040125]
[1735172161198,0.003,99778.0,99773.0,0.3608]
[1735172161199,0.040123,99776.0,99773.0,0.3608]
[1735172162080,0.040123,99776.0,99773.0,0.400924]
[1735172162686,0.041123,99776.0,99773.0,0.400924]
[1735172163086,0.040126,99769.0,99768.0,0.29584965]
[1735172163684,0.3228,99769.0,99761.0,0.35482288]
[1735172163889,0.040129,99762.0,99761.0,0.35482288]
[1735172164286,0.400929,99762.0,99761.0,0.35482288]
[1735172164585,0.700929,99762.0,99754.0,0.26328025]
[1735172164790,0.700929,99762.0,99740.0,0.47309718]
[1735172164791,0.3608,99755.0,99740.0,0.47309718]
[1735172164990,0.400937,99741.0,99740.0,0.47309718]
[1735172165187,0.040139,99738.0,99733.0,0.001]
[1735172165493,0.040139,99738.0,99725.0,0.47309718]
[1735172166080,0.040143,99726.0,99725.0,0.47309718]
[1735172166796,0.3608,99733.0,99718.0,0.00104]
[1735172166985,0.040146,99721.0,99712.0,0.040149]
[1735172167485,0.040146,99721.0,99714.0,0.040148]
[1735172167689,0.001,99726.0,99718.0,0.040147]
[1735172167895,0.041144,99726.0,99718.0,0.040147]
[1735172168792,0.041144,99726.0,99710.0,0.44075034]
[1735172168793,0.001,99726.0,99725.0,0.3608]
[1735172168994,0.11991827,99734.0,99733.0,0.040141]
[1735172169185,0.11991827,99734.0,99733.0,0.400941]
[1735172169992,0.00959214,99744.0,99733.0,0.3608]
[1735172170295,0.3608,99753.0,99741.0,0.3608]
[1735172170492,0.040136,99746.0,99741.0,0.3608]
[1735172170689,0.11991827,99759.0,99741.0,0.3608]
[1735172170690,0.11991827,99759.0,99757.0,0.040131]
[1735172170891,0.11991827,99759.0,99758.0,0.3608]
[1735172171394,0.11991827,99762.0,99761.0,0.040129]
[1735172171591,0.11991827,99762.0,99761.0,0.400929]
[1735172171786,0.14933905,99769.0,99768.0,0.040127]
[1735172171987,0.14933905,99769.0,99768.0,0.400927]
[1735172172590,0.040119,99788.0,99774.0,0.040124]
[1735172172786,0.040119,99787.0,99774.0,0.040124]
[1735172173190,0.0095083,99791.0,99774.0,0.040124]
[1735172173395,0.040119,99786.0,99774.0,0.040124]
[1735172173583,0.0025043,99775.0,99774.0,0.040124]
[1735172175286,0.0426283,99775.0,99773.0,0.3608]
[1735172176589,0.0416283,99775.0,99773.0,0.3608]
[1735172176790,0.0426283,99775.0,99773.0,0.3608]
[1735172177601,0.0025043,99775.0,99773.0,0.400924]
[1735172179488,0.001,99775.0,99773.0,0.400924]
[1735172181197,0.3608,99806.0,99801.0,0.040113]
[1735172181397,0.3608,99806.0,99802.0,0.040113]
[1735172181595,0.3608,99806.0,99793.0,0.3608]
[1735172181795,0.37064627,99806.0,99803.0,0.040112]
[1735172182195,0.002,99806.0,99804.0,0.3608]
[1735172182500,0.007,99806.0,99805.0,0.040112]
[1735172184100,0.007,99806.0,99796.0,0.3608]
[1735172184498,0.007,99806.0,99805.0,0.3608]
[1735172184700,0.005,99806.0,99805.0,0.3608]
[1735172185001,0.040107,99818.0,99810.0,0.04011]
[1735172185509,0.1645,99819.0,99810.0,0.04011]
[1735172186201,0.204606,99819.0,99810.0,0.04011]
[1735172186505,0.204606,99819.0,99810.0,0.04111]
[1735172187093,0.00650345,99811.0,99810.0,0.04211]
[1735172192306,0.00962617,99825.0,99810.0,0.04211]
[1735172192500,0.18944105,99830.0,99821.0,0.3608]
[1735172192805,0.14933905,99830.0,99828.0,0.040102]
[1735172193708,0.14933905,99830.0,99829.0,0.1645]
[1735172193908,0.00150297,99849.0,99829.0,0.1645]
[1735172194100,0.00150297,99849.0,99846.0,0.040095]
[1735172195310,0.00750297,99849.0,99848.0,0.040094]
[1735172196613,0.00250297,99849.0,99848.0,0.040094]
[1735172197711,0.00250297,99849.0,99848.0,0.001]
[1735172198104,0.00250297,99849.0,99845.0,0.3608]
[1735172198105,0.00150297,99849.0,99845.0,0.3608]
[1735172198407,0.00250297,99849.0,99845.0,0.3608]
[1735172199014,0.04259697,99849.0,99845.0,0.3608]
[1735172199810,0.04359697,99849.0,99845.0,0.3608]
[1735172200914,0.00350297,99849.0,99845.0,0.3608]
[1735172201116,0.00350297,99849.0,99847.0,0.040095]
[1735172202510,0.002,99849.0,99847.0,0.040095]
[1735172202717,0.001,99849.0,99847.0,0.040095]
[1735172203014,0.002,99849.0,99845.0,0.3608]
[1735172203812,0.002,99849.0,99846.0,0.040095]
[1735172204311,0.001,99849.0,99846.0,0.040095]
[1735172204512,0.002,99849.0,99846.0,0.040095]
[1735172208922,0.002,99849.0,99847.0,0.040095]
[1735172209919,0.001,99849.0,99847.0,0.040095]
[1735172210118,0.002,99849.0,99847.0,0.040095]
[1735172212820,0.1642,99833.0,99829.0,0.040102]
[1735172213617,0.1642,99833.0,99825.0,0.3608]
[1735172213820,0.1642,99833.0,99811.0,0.23682322]
[1735172213821,0.040107,99817.0,99811.0,0.23682322]
[1735172214022,0.400907,99817.0,99811.0,0.23586322]
[1735172214927,0.401907,99817.0,99811.0,0.23586322]
[1735172215227,0.401907,99817.0,99804.0,0.3608]
[1735172216125,0.3618,99817.0,99804.0,0.3608]
[1735172216427,0.040111,99807.0,99804.0,0.3608]
[1735172217928,0.040108,99814.0,99804.0,0.400912]
[1735172218620,0.04011,99811.0,99804.0,0.001]
[1735172218821,0.04011,99811.0,99805.0,0.040111]
[1735172219019,0.003,99814.0,99805.0,0.040111]
[1735172219229,0.04011,99810.0,99805.0,0.040111]
[1735172221228,0.040109,99807.0,99802.0,0.040109]
[1735172221727,0.001,99810.0,99802.0,0.040109]
[1735172222227,0.040105,99814.0,99802.0,0.040109]
[1735172222628,0.040106,99813.0,99803.0,0.040109]